bitfinex-derivatives/quotes_ETHF0:USTF0_20250428
["timestamp","ask_amount","ask_price","bid_price","bid_amount"]
[1745852764327,1.12101,1783.3,1783.2,41.92103]
[1745852764635,3.68351,1783.3,1783.2,40.8]
[1745852764931,1.12138,1782.8,1782.7,1.12134]
[1745852765127,1.56806776,1782.8,1782.7,11.31744]
[1745852765430,1.56806776,1782.8,1782.7,11.31748]
[1745852765933,1.56806776,1782.8,1782.7,50.9961]
[1745852766230,3.30446776,1782.8,1782.7,52.11748]
[1745852768043,3.30446776,1782.8,1782.7,50.9961]
[1745852768240,6.51226776,1782.8,1782.7,3.802]
[1745852768541,11.51226776,1782.8,1782.7,1.06891605]
[1745852768742,12.37466776,1782.8,1782.7,1.06891605]
[1745852768930,7.37466776,1782.8,1782.7,1.06891605]
[1745852769243,1.12145,1782.6,1782.5,1.6838]
[1745852769538,0.44668776,1782.6,1782.4,41.92157]
[1745852769843,1.56813776,1782.6,1782.5,1.6838]
[1745852770043,2.74965,1782.6,1782.5,1.6838]
[1745852770344,6.40320693,1782.6,1782.5,1.6838]
[1745852771447,1.12151,1782.5,1782.4,40.8]
[1745852771646,2.74971,1782.5,1782.4,40.8]
[1745852771850,3.19546693,1782.5,1782.4,40.8]
[1745852772149,0.44575693,1782.5,1782.4,47.32137]
[1745852772649,1.56726693,1782.5,1782.4,47.32137]
[1745852772949,0.44575693,1782.5,1782.4,47.32137]
[1745852773550,1.56726693,1782.5,1782.4,47.32137]
[1745852773749,1.56726693,1782.5,1782.4,46.1998]
[1745852773946,3.16866693,1782.5,1782.4,44.602]
[1745852774143,4.00836693,1782.5,1782.4,40.8]
[1745852774351,2.80397,1782.4,1782.1,3.945]
[1745852774548,1.1217,1782.2,1782.1,3.945]
[1745852774747,1.12176,1782.1,1782.0,2.73012]
[1745852774949,2.72314,1782.2,1782.1,1.12176]
[1745852775153,3.16889693,1782.2,1782.1,1.12176]
[1745852775453,3.16889693,1782.2,1782.1,40.8]
[1745852776052,3.16889693,1782.2,1782.1,41.92176]
[1745852776549,3.16889693,1782.2,1782.1,43.56516]
[1745852776749,3.16885693,1782.2,1782.1,43.56516]
[1745852777145,2.04715693,1782.2,1782.1,43.56516]
[1745852777948,3.16885693,1782.2,1782.1,43.56516]
[1745852778149,0.44575693,1782.2,1782.1,43.56516]
[1745852779049,4.0475,1782.5,1782.4,1.12157]
[1745852779252,3.2078,1782.5,1782.4,1.12157]
[1745852779650,4.32931,1782.5,1782.4,1.12157]
[1745852779848,4.32931,1782.5,1782.4,2.84487]
[1745852780251,4.32931,1782.5,1782.4,6.64687]
[1745852781255,4.32931,1782.5,1782.4,5.5253]
[1745852781458,4.32931,1782.5,1782.4,3.802]
[1745852781650,4.32931,1782.5,1782.4,4.92357]
[1745852782062,1.1214,1782.7,1782.6,1.12145]
[1745852782356,4.32916,1782.8,1782.7,1.12138]
[1745852782557,6.07606,1782.8,1782.7,1.12138]
[1745852782758,1.12145,1782.7,1782.6,2.80621]
[1745852782958,2.86835,1782.7,1782.6,2.80621]
[1745852783660,2.86835,1782.7,1782.6,1.6848]
[1745852783865,1.7469,1782.7,1782.3,4.46614]
[1745852784057,1.12157,1782.4,1782.3,2.78378]
[1745852784856,2.80359,1782.7,1782.3,4.46624]
[1745852785052,1.12154,1782.5,1782.4,1.1215]
[1745852785860,1.12157,1782.4,1782.3,6.58579]
[1745852786055,1.12157,1782.4,1782.3,5.4642]
[1745852786357,1.12157,1782.4,1782.3,2.78384]
[1745852786558,1.12157,1782.4,1782.3,4.40914]
[1745852787764,1.1217,1782.2,1782.1,41.92171]
[1745852787959,1.1217,1782.2,1782.1,40.8]
[1745852788565,1.1217,1782.2,1782.1,41.92176]
[1745852788864,1.1217,1782.2,1782.1,43.56586]
[1745852789164,1.1217,1782.2,1782.1,2.76586]
[1745852789365,1.1217,1782.2,1782.1,1.6441]
[1745852789662,1.1217,1782.2,1782.1,42.4441]
[1745852790365,1.1217,1782.2,1782.1,1.6441]
[1745852790667,1.12176,1782.1,1782.0,4.32962]
[1745852790965,2.83816,1782.1,1782.0,40.8]
[1745852791161,1.12182,1782.0,1781.9,3.3028]
[1745852791364,2.73252,1782.0,1781.9,4.42469]
[1745852791663,2.73252,1782.0,1781.9,44.1028]
[1745852792460,2.73252,1782.0,1781.9,45.22469]
[1745852792666,2.73252,1782.0,1781.9,44.1028]
[1745852793462,2.73252,1782.0,1781.9,45.22469]
[1745852793667,2.73252,1782.0,1781.9,43.2477]
[1745852793966,2.73252,1782.0,1781.9,40.8]
[1745852793967,3.60552,1782.0,1781.9,40.8]
[1745852794764,3.60552,1782.0,1781.8,2.88135]
[1745852794765,1.12189,1781.9,1781.8,2.88135]
[1745852795072,1.12189,1781.9,1781.8,2.88131]
[1745852795271,2.73255,1782.0,1781.9,1.12189]
[1745852795567,1.1218,1782.1,1782.0,1.12176]
[1745852795767,1.1218,1782.1,1782.0,2.88116]
[1745852796172,1.1218,1782.1,1782.0,6.68316]
[1745852796973,1.1218,1782.1,1782.0,5.5614]
[1745852797679,4.3296,1782.1,1782.0,3.802]
[1745852798271,1.12182,1782.0,1781.9,42.4022]
[1745852798571,2.88032,1782.0,1781.9,1.6022]
[1745852798767,1.12189,1781.9,1781.8,4.0618]
[1745852799067,2.88039,1781.9,1781.8,4.0618]
[1745852799273,2.88039,1781.9,1781.8,5.664]
[1745852799570,2.88039,1781.9,1781.8,2.4562]
[1745852799763,2.88039,1781.9,1781.8,3.57815]
[1745852800271,2.88039,1781.9,1781.8,2.4562]
[1745852800463,1.12189,1781.9,1781.8,2.4562]
[1745852801061,1.95889,1781.9,1781.8,2.4562]
[1745852801266,1.12195,1781.8,1781.7,42.789]
[1745852801569,1.12195,1781.8,1781.7,43.6068]
[1745852802166,1.12195,1781.8,1781.7,47.4088]
[1745852802668,1.12195,1781.8,1781.7,6.6088]
[1745852802972,2.77295,1781.8,1781.7,0.14844307]
[1745852803270,1.12208,1781.6,1781.5,43.3449]
[1745852803572,1.12208,1781.6,1781.5,44.46704]
[1745852803771,1.12208,1781.6,1781.5,43.3449]
[1745852804272,1.12208,1781.6,1781.5,40.8]
[1745852804665,1.12208,1781.6,1781.5,41.92214]
[1745852804963,1.12208,1781.6,1781.5,43.60994]
[1745852805363,2.77347,1781.7,1781.6,1.12208]
[1745852805567,2.77347,1781.7,1781.6,2.80988]
[1745852805766,2.77347,1781.7,1781.6,1.6878]
[1745852806369,2.77347,1781.7,1781.6,2.80988]
[1745852806564,2.77347,1781.7,1781.6,1.6878]
[1745852807069,1.12208,1781.6,1781.5,40.8]
[1745852807372,1.12208,1781.6,1781.5,43.61224]
[1745852807573,1.12208,1781.6,1781.5,42.4901]
[1745852807769,1.12208,1781.6,1781.5,1.6901]
[1745852808474,1.12214,1781.5,1781.4,42.4933]
[1745852808775,1.1222,1781.4,1781.3,0.01965]
[1745852808974,1.1222,1781.4,1781.3,1.14192]
[1745852809278,1.1222,1781.4,1781.3,45.74392]
[1745852809572,1.1222,1781.4,1781.3,47.43402]
[1745852809772,1.12208,1781.7,1781.6,1.12205]
[1745852809975,1.12211,1781.6,1781.5,1.12209]
[1745852810178,1.12211,1781.6,1781.5,1.92529]
[1745852810875,1.12211,1781.6,1781.5,0.8032]
[1745852811381,1.1222,1781.4,1781.3,45.13002]
[1745852811569,1.1222,1781.4,1781.3,45.93327]
[1745852812177,2.87808,1781.5,1781.4,1.1222]
[1745852812369,1.1222,1781.4,1781.3,45.93323]
[1745852812564,1.1222,1781.4,1781.3,44.811]
[1745852812872,1.1222,1781.4,1781.3,45.93327]
[1745852813177,1.1222,1781.4,1781.3,49.73527]
[1745852813477,1.1222,1781.4,1781.3,48.613]
[1745852813779,1.1222,1781.4,1781.3,49.73527]
[1745852813975,1.1222,1781.4,1781.3,48.613]
[1745852814277,1.1222,1781.4,1781.3,44.811]
[1745852814577,1.1222,1781.4,1781.3,45.93327]
[1745852814974,1.12212,1781.6,1781.5,1.12209]
[1745852815480,1.12218,1781.5,1781.4,1.12215]
[1745852815980,1.12213,1781.6,1781.5,1.12209]
[1745852816278,1.12214,1781.5,1781.4,41.92215]
[1745852816581,1.12212,1781.6,1781.5,1.12211]
[1745852817081,1.12205,1781.7,1781.6,1.12208]
[1745852817287,1.12212,1781.6,1781.5,1.12208]
[1745852817674,1.12214,1781.5,1781.4,41.92215]
[1745852817974,1.1222,1781.4,1781.3,5.13321]
[1745852818376,1.1222,1781.4,1781.3,1.92541]
[1745852818578,1.12233,1781.2,1781.1,1.12234]
[1745852818788,1.12239,1781.1,1781.0,1.6447]
[1745852818972,2.4337,1781.3,1781.0,42.4447]
[1745852819179,1.12239,1781.1,1781.0,46.2467]
[1745852819379,2.75237,1781.2,1781.1,1.12239]
[1745852819680,1.12239,1781.1,1781.0,47.36911]
[1745852820076,2.75236,1781.2,1781.1,1.12239]
[1745852820276,1.12239,1781.1,1781.0,47.36912]
[1745852820479,2.75238,1781.2,1781.1,1.12239]
[1745852820679,1.12239,1781.1,1781.0,47.36909]
[1745852821685,2.75238,1781.2,1781.1,1.12239]
[1745852821982,1.12238,1781.2,1781.1,2.82089]
[1745852822981,4.33008,1781.4,1781.1,4.50444]
[1745852823181,2.77237,1781.5,1781.4,1.1222]
[1745852823388,1.1222,1781.4,1781.3,2.8207]
[1745852823684,1.12236,1781.2,1781.1,1.12233]
[1745852823981,2.7725,1781.3,1781.2,1.12227]
[1745852824180,1.12233,1781.2,1781.1,2.82084]
[1745852824982,2.7725,1781.3,1781.2,1.12233]
[1745852825783,1.1223,1781.3,1781.2,1.12233]
[1745852826184,1.12225,1781.4,1781.3,1.1222]
[1745852826387,1.12225,1781.4,1781.3,3.6722]
[1745852827281,1.12225,1781.4,1781.3,6.352]
[1745852827478,2.78025,1781.4,1781.3,3.802]
[1745852827983,7.78025,1781.4,1781.3,3.802]
[1745852828182,7.78025,1781.4,1781.0,46.7094]
[1745852828183,1.12239,1781.1,1781.0,48.3976]
[1745852828585,1.12229,1781.3,1781.2,1.12226]
[1745852828781,1.12233,1781.2,1781.1,2.81054]
[1745852829382,2.83372,1781.3,1781.2,1.12233]
[1745852829778,1.12233,1781.2,1781.1,2.81054]
[1745852830407,1.12239,1781.1,1781.0,46.56542]
[1745852830586,1.7114,1781.1,1781.0,48.25362]
[1745852830891,3.2078,1781.4,1781.2,1.12228]
[1745852831085,1.12231,1781.3,1781.2,1.12228]
[1745852831286,4.8185,1781.4,1781.0,45.443]
[1745852831590,1.12239,1781.1,1781.0,6.3066]
[1745852831890,1.12239,1781.1,1781.0,7.42905]
[1745852832088,2.73309,1781.1,1781.0,47.1066]
[1745852832288,2.73309,1781.1,1781.0,48.22905]
[1745852832483,3.2078,1781.2,1781.0,47.1066]
[1745852832690,4.33013,1781.2,1781.1,1.6636]
[1745852832883,5.94083,1781.2,1781.1,1.6636]
[1745852833885,1.12239,1781.1,1781.0,3.802]
[1745852834088,3.59749,1781.1,1781.0,3.802]
[1745852834388,1.12245,1781.0,1780.9,1.12251]
[1745852834589,2.71525,1781.0,1780.9,1.12251]
[1745852834787,2.00475,1781.1,1781.0,1.12245]
[1745852834984,1.12245,1781.0,1780.9,2.86958]
[1745852835186,1.12245,1781.0,1780.9,6.67158]
[1745852836189,1.12245,1781.0,1780.9,5.5491]
[1745852836391,1.12245,1781.0,1780.9,3.802]
[1745852836392,13.27425,1781.0,1780.9,3.802]
[1745852836589,14.13705,1781.0,1780.9,2.58624]
[1745852836779,14.59243797,1781.0,1780.9,2.58624]
[1745852836983,15.82335,1781.0,1780.9,2.58624]
[1745852837186,1.12277,1780.5,1780.4,42.5471]
[1745852837383,1.12277,1780.5,1780.4,40.8]
[1745852837590,1.12277,1780.5,1780.4,1.12281]
[1745852837787,1.12272,1780.6,1780.5,1.12277]
[1745852838290,1.12272,1780.6,1780.5,3.802]
[1745852838493,2.80902,1780.6,1780.5,3.802]
[1745852838793,3.65122,1780.6,1780.5,3.802]
[1745852838988,2.80902,1780.6,1780.5,3.802]
[1745852839194,7.80902,1780.6,1780.5,3.802]
[1745852839393,8.65122,1780.6,1780.5,3.802]
[1745852839597,3.65122,1780.6,1780.5,3.802]
[1745852839791,7.59522,1780.6,1780.5,3.802]
[1745852840283,6.5659778,1780.6,1779.2,56.06141598]
[1745852840487,4.33107,1779.7,1779.2,56.06141598]
[1745852840796,4.33107,1779.7,1779.6,17.40549502]
[1745852840991,9.33107,1779.7,1779.6,16.27347502]
[1745852841186,1.12353,1779.3,1779.2,13.52184511]
[1745852841495,1.12359,1779.2,1779.1,15.06251502]
[1745852841683,8.27638,1779.3,1779.1,15.06251502]
[1745852841888,7.1528,1779.3,1779.1,15.06251502]
[1745852842187,1.12359,1779.2,1779.1,15.06251502]
[1745852843495,1.12359,1779.2,1779.1,16.66601502]
[1745852843880,2.76659,1779.2,1779.1,16.66601502]
[1745852844288,2.76659,1779.2,1779.1,15.06251502]
[1745852844897,7.76659,1779.2,1779.1,15.06251502]
[1745852845594,2.76659,1779.2,1779.1,15.06251502]
[1745852845989,7.76659,1779.2,1779.1,15.06251502]
[1745852846191,2.76659,1779.2,1779.1,15.06251502]
[1745852846596,1.12359,1779.2,1779.1,15.06251502]
[1745852847097,1.12359,1779.2,1779.1,16.80271502]
[1745852847494,4.33137,1779.3,1779.1,17.92635502]
[1745852847796,4.33137,1779.3,1779.2,1.7402]
[1745852848195,4.33137,1779.3,1779.0,4.92567]
[1745852848196,3.2078,1779.3,1779.0,3.802]
[1745852848399,1.12364,1779.2,1779.1,1.7402]
[1745852848598,12.73107056,1779.5,1779.4,1.12346]
[1745852848797,3.63527056,1779.5,1779.4,1.12346]
[1745852849099,7.96649056,1779.5,1779.4,3.802]
[1745852849395,6.84307056,1779.5,1779.4,4.92546]
[1745852849597,6.84307056,1779.5,1779.4,13.87246]
[1745852849789,0.98717056,1779.5,1779.4,13.87246]
[1745852850099,0.98717056,1779.5,1779.4,17.08026]
[1745852850498,2.11057056,1779.5,1779.4,3.802]
[1745852851094,1.12346,1779.4,1779.3,1.6853]
[1745852851295,6.02466,1779.4,1779.3,1.6853]
[1745852851802,4.33126,1779.4,1779.3,1.6853]
[1745852852199,4.33126,1779.4,1779.3,5.4873]
[1745852852500,6.06436,1779.4,1779.3,5.4873]
[1745852852994,4.33126,1779.4,1779.3,5.4873]
[1745852853195,2.80887,1779.3,1778.6,2.80993]
[1745852853499,2.80887,1779.3,1778.4,3.2078]
[1745852853500,1.12362,1779.2,1779.0,1.6057]
[1745852853697,3.2078,1779.1,1779.0,1.6057]
[1745852853998,4.33145,1779.1,1779.0,1.6057]
[1745852854193,4.33145,1779.1,1779.0,5.4077]
[1745852854393,3.2078,1779.1,1779.0,6.53142]
[1745852854791,4.3313,1779.4,1779.0,13.21691]
[1745852854988,3.2078,1779.4,1779.0,12.16491]
[1745852855193,3.2078,1779.8,1779.2,2.80897]
[1745852855393,1.12337,1779.6,1779.5,1.1234]
[1745852856096,1.12337,1779.6,1779.5,6.6693]
[1745852856301,4.33117,1779.6,1779.5,5.5459]
[1745852857199,4.33117,1779.6,1779.5,3.802]
[1745852857999,6.00237,1779.6,1779.5,3.802]
[1745852859206,1.1234,1779.5,1779.4,1.7439]
[1745852860207,1.1234,1779.5,1779.4,5.5459]
[1745852860419,2.7639,1779.5,1779.4,5.5459]
[1745852861203,2.7639,1779.5,1779.4,1.7439]
[1745852861395,1.12351,1779.4,1779.1,3.948]
[1745852861601,3.2078,1779.2,1779.1,5.07165]
[1745852861801,3.2078,1779.4,1779.3,1.12353]
[1745852862205,3.2078,1779.4,1779.3,4.92553]
[1745852862403,3.2078,1779.7,1779.6,1.12334]
[1745852862898,4.33107,1779.7,1779.6,1.12334]
[1745852863103,3.2078,1779.7,1779.5,9.66855]
[1745852863405,3.2078,1779.7,1779.6,1.12334]
[1745852863807,4.33107,1779.7,1779.6,1.12334]
[1745852864508,1.12334,1779.6,1779.5,5.72055]
[1745852864699,1.12334,1779.6,1779.5,6.58505]
[1745852866308,1.12334,1779.6,1779.5,8.22885]
[1745852866704,1.12334,1779.6,1779.5,4.5972]
[1745852867400,2.81524,1779.6,1779.5,4.5972]
[1745852869003,2.81524,1779.6,1779.5,3.802]
[1745852869609,4.33113,1779.7,1779.6,1.12334]
[1745852869807,4.33113,1779.7,1779.6,1.708]
[1745852870305,4.33113,1779.7,1779.6,2.83134]
[1745852870604,1.12334,1779.6,1779.5,3.802]
[1745852870802,2.76624,1779.6,1779.5,3.802]
[1745852872011,3.62514,1779.6,1779.5,3.802]
[1745852872311,1.12359,1779.2,1779.1,0.8361]
[1745852872506,4.33139,1779.2,1779.1,0.8361]
[1745852872707,4.33139,1779.2,1779.1,1.95975]
[1745852873019,3.2078,1779.2,1778.8,40.8]
[1745852873308,1.12388,1778.8,1778.7,1.7015]
[1745852873703,2.72758,1778.8,1778.7,42.5015]
[1745852873907,2.72758,1778.8,1778.7,43.62541]
[1745852874106,4.33163,1778.9,1778.7,47.42741]
[1745852874305,1.12384,1778.8,1778.7,44.602]
[1745852874610,2.72754,1778.8,1778.7,44.602]
[1745852875113,2.72754,1778.8,1778.7,3.802]
[1745852875708,4.33164,1778.9,1778.7,3.802]
[1745852875908,3.2078,1778.9,1778.7,4.92586]
[1745852876110,3.2078,1778.9,1778.7,3.802]
[1745852876307,1.7452,1778.8,1778.7,3.802]
[1745852876807,1.7452,1778.8,1778.7,4.92591]
[1745852877008,1.7452,1778.8,1778.7,3.802]
[1745852877207,11.91004,1778.8,1778.7,2.60769]
[1745852877509,2.80994,1778.6,1778.0,0.8326]
[1745852877707,3.2078,1778.2,1778.0,1.95689]
[1745852877907,3.2078,1778.2,1777.9,0.8458]
[1745852878110,5.42577,1778.5,1775.9,158.8347475]
[1745852878111,3.2078,1778.0,1777.4,0.4556039]
[1745852878308,3.2078,1777.7,1777.6,1.1246]
[1745852878618,3.2078,1777.9,1777.6,5.0]
[1745852878909,1.12435,1778.0,1777.7,1.1245]
[1745852879114,3.2078,1777.8,1777.7,3.802]
[1745852879319,3.63049187,1777.8,1777.7,3.802]
[1745852879610,4.75496187,1777.8,1777.7,2.5019]
[1745852880416,4.75496187,1777.8,1777.2,40.8]
[1745852880417,4.75497187,1777.8,1777.4,1.12471]
[1745852880602,3.2078,1777.6,1777.2,40.8]
[1745852880808,3.2078,1777.6,1777.4,1.12471]
[1745852881007,3.2078,1777.6,1777.5,4.042]
[1745852881311,3.62988862,1777.6,1777.4,4.92669]
[1745852881513,3.2078,1777.6,1777.4,3.802]
[1745852881816,4.3324,1777.6,1777.5,40.8]
[1745852882115,3.2078,1777.6,1777.5,40.8]
[1745852882414,1.12438,1778.0,1777.7,1.12451]
[1745852882609,4.924,1778.1,1777.6,0.8221]
[1745852882817,6.04829,1778.1,1777.8,1.12443]
[1745852883010,1.12442,1777.9,1777.7,0.8183]
[1745852883212,4.33225,1777.9,1777.8,3.802]
[1745852883705,10.20652103,1777.9,1777.8,3.802]
[1745852883905,10.20652103,1777.9,1777.8,0.87199338]
[1745852884118,1.12457,1777.7,1777.6,4.043]
[1745852884317,4.33237,1777.7,1777.6,4.043]
[1745852884512,3.2078,1777.7,1777.6,4.043]
[1745852884909,4.33234,1777.7,1777.6,4.043]
[1745852885107,3.2078,1777.7,1777.5,45.72662]
[1745852885317,5.45290584,1777.9,1777.5,54.66445]
[1745852885519,8.66070584,1778.1,1777.6,1.12455]
[1745852885712,2.89038,1778.0,1777.7,0.8413]
[1745852885912,1.766,1778.0,1777.8,4.044]
[1745852886218,1.12438,1778.0,1777.8,9.82163]
[1745852886418,1.12438,1778.0,1777.8,14.82166]
[1745852886617,5.45290584,1778.1,1778.0,1.12435]
[1745852886819,5.45290584,1778.1,1778.0,4.33215]
[1745852887020,1.29944697,1778.2,1778.1,1.12428]
[1745852887207,1.29944697,1778.2,1778.1,5.16828]
[1745852887412,1.29944697,1778.2,1778.1,10.16828]
[1745852888419,9.08817641,1778.4,1778.3,1.12416]
[1745852888617,9.08817641,1778.4,1778.3,4.33196]
[1745852888914,9.08817641,1778.4,1778.1,3.2078]
[1745852889119,1.12448,1777.8,1777.7,1.12451]
[1745852889322,1.12457,1777.7,1777.5,0.8734]
[1745852889622,3.2078,1777.6,1777.5,1.99806]
[1745852890208,3.2078,1777.6,1777.5,9.84306]
[1745852890809,4.3324,1777.6,1777.5,8.7184]
[1745852891017,3.2078,1777.6,1777.5,9.84306]
[1745852891517,3.2078,1777.6,1777.5,9.84406]
[1745852892214,3.2078,1777.6,1777.5,11.50956]
[1745852892816,1.5898,1777.9,1777.6,1.1246]
[1745852893016,1.5898,1777.9,1777.8,1.12447]
[1745852893220,3.2078,1778.0,1777.9,1.12441]
[1745852893420,6.02567,1778.2,1778.1,1.12428]
[1745852893629,1.12432,1778.1,1778.0,1.12432]
[1745852893923,2.81792,1778.1,1778.0,1.12432]
[1745852894120,2.81792,1778.1,1778.0,4.92632]
[1745852894322,6.6936,1778.1,1777.4,4.044]
[1745852894532,4.33233,1777.8,1777.7,1.12454]
[1745852895119,1.12457,1777.7,1777.6,1.12456]
[1745852895324,2.74687,1777.7,1777.6,1.12456]
[1745852895522,3.2078,1777.8,1777.7,1.12454]
[1745852896222,4.33227,1777.8,1777.7,3.802]
[1745852896419,1.12495,1777.1,1777.0,1.12495]
[1745852896629,1.12484,1777.3,1777.2,1.12483]
[1745852896927,4.33264,1777.3,1777.2,1.12483]
[1745852897130,4.33264,1777.3,1777.2,4.92683]
[1745852897521,4.33264,1777.3,1777.2,3.802]
[1745852897825,4.33264,1777.3,1777.2,4.92685]
[1745852898027,9.33264,1777.3,1777.2,3.802]
[1745852898330,1.12496,1777.1,1777.0,1.12498]
[1745852898630,3.2078,1777.1,1777.0,41.92498]
[1745852898934,4.33272,1777.1,1777.0,41.92498]
[1745852899226,3.2078,1777.1,1777.0,45.72698]
[1745852899730,3.2078,1777.1,1777.0,49.98698]
[1745852900025,4.33272,1777.1,1777.0,44.602]
[1745852900224,6.03772,1777.1,1777.0,44.602]
[1745852900820,6.03772,1777.1,1777.0,45.72698]
[1745852901026,4.9128,1777.1,1777.0,44.602]
[1745852901329,11.45850699,1777.1,1777.0,2.23977]
[1745852901628,11.45850699,1777.1,1777.0,0.91517]
[1745852901830,12.31020699,1777.1,1777.0,0.91517]
[1745852902322,2.8126,1777.0,1776.6,1.12521]
[1745852902524,4.33299,1776.7,1776.5,1.12524]
[1745852902825,1.681,1776.6,1776.3,46.8014]
[1745852903019,1.681,1776.6,1776.3,47.92682]
[1745852903020,3.2078,1776.4,1776.3,47.92682]
[1745852903217,3.664,1777.1,1776.7,1.12515]
[1745852903418,3.2078,1776.8,1776.7,1.12515]
[1745852903725,1.681,1776.9,1776.8,1.12511]
[1745852903915,2.10206404,1776.9,1776.8,1.12511]
[1745852904221,12.98989899,1776.9,1776.6,1.12522]
[1745852904427,3.2078,1776.7,1776.5,1.12527]
[1745852904721,1.12538,1776.4,1776.2,0.02281]
[1745852904922,3.2078,1776.4,1776.3,1.12542]
[1745852905224,3.2078,1776.4,1776.3,4.92742]
[1745852905435,3.62872231,1776.4,1776.3,3.802]
[1745852905619,3.62872231,1776.4,1776.3,4.92742]
[1745852905828,3.2078,1776.4,1776.3,4.92742]
[1745852906029,5.95296,1776.4,1776.3,4.92742]
[1745852906326,4.8276,1776.4,1776.3,4.92742]
[1745852906528,5.95296,1776.4,1776.3,4.92742]
[1745852906722,5.94266088,1776.4,1776.3,4.92742]
[1745852906929,6.36369363,1776.4,1776.3,3.802]
[1745852907128,5.94266088,1776.4,1776.3,3.802]
[1745852907325,6.36348014,1776.4,1776.3,3.802]
[1745852907829,5.23812014,1776.4,1776.3,4.92742]
[1745852908132,5.94266088,1776.4,1776.3,3.802]
[1745852908324,5.23813417,1776.4,1776.3,4.92742]
[1745852908630,4.81730088,1776.4,1776.3,4.92742]
[1745852908833,5.23801501,1776.4,1776.3,4.92742]
[1745852909126,4.81730088,1776.4,1776.3,1.12542]
[1745852909428,5.94268088,1776.4,1776.3,1.12542]
[1745852909628,1.12542,1776.3,1776.2,1.14826]
[1745852909827,2.83212,1776.3,1776.2,1.14826]
[1745852910032,1.7067,1776.3,1776.2,1.14826]
[1745852910227,1.7067,1776.3,1776.2,4.95026]
[1745852910730,2.83212,1776.3,1776.2,4.95026]
[1745852911128,1.7067,1776.3,1776.2,3.82481]
[1745852911323,2.83212,1776.3,1776.2,3.82481]
[1745852911524,2.83212,1776.3,1776.2,4.9503]
[1745852911823,1.7067,1776.3,1776.2,4.9503]
[1745852912326,3.19750088,1776.4,1776.3,1.12542]
[1745852913127,3.2078,1776.6,1776.5,1.1253]
[1745852913323,1.6652,1776.7,1776.6,1.12523]
[1745852913528,3.2078,1777.2,1776.7,2.81293]
[1745852913731,0.42015401,1777.1,1777.0,1.12497]
[1745852913928,3.2078,1777.2,1777.0,1.12493]
[1745852914124,3.2078,1777.2,1777.0,3.802]
[1745852914530,1.12492,1777.1,1777.0,4.92696]
[1745852914832,10.8302,1777.4,1777.0,3.802]
[1745852915029,1.12473,1777.4,1777.1,2.81224]
[1745852915228,9.08817641,1777.5,1777.4,1.12473]
[1745852915628,12.12297536,1777.7,1777.5,1.12463]
[1745852915823,12.12297536,1777.7,1777.4,40.8]
[1745852915824,0.42070878,1777.6,1777.4,40.8]
[1745852916027,4.9422,1777.8,1777.6,1.12458]
[1745852916328,0.42072077,1777.7,1777.6,1.12457]
[1745852916525,4.9422,1777.8,1777.4,40.8]
[1745852916722,6.0667,1777.8,1777.6,1.12454]
[1745852916930,0.42083934,1777.7,1777.6,1.12454]
[1745852917534,0.42083934,1777.7,1777.4,40.8]
[1745852917737,1.12459,1777.7,1777.5,1.12465]
[1745852918034,1.1246,1777.6,1777.5,1.12466]
[1745852918234,1.12466,1777.5,1777.4,40.8]
[1745852918437,0.42132439,1777.5,1777.4,1.12473]
[1745852918835,5.888,1777.7,1777.6,1.1246]
[1745852919035,6.30931363,1777.7,1777.6,1.1246]
[1745852919235,6.30931363,1777.7,1777.5,1.12461]
[1745852919236,1.1246,1777.6,1777.5,1.12461]
[1745852919436,1.54591363,1777.6,1777.5,1.12461]
[1745852919735,0.42131363,1777.6,1777.5,1.12461]
[1745852920123,1.54612476,1777.6,1777.5,1.12461]
[1745852920329,0.42152476,1777.6,1777.5,4.33241]
[1745852920632,3.2078,1778.1,1778.0,1.12435]
[1745852920633,9.0958,1778.1,1778.0,1.12435]
[1745852920833,14.27913471,1778.2,1778.0,1.12435]
[1745852921034,1.12428,1778.1,1777.8,4.263]
[1745852921227,8.39114471,1778.2,1778.0,1.12433]
[1745852921427,7.26686471,1778.2,1777.8,7.07416]
[1745852921731,10.07745471,1778.2,1777.8,5.38743]
[1745852921929,6.01862,1778.1,1777.8,4.263]
[1745852922130,1.12441,1777.9,1777.8,4.263]
[1745852922329,1.12441,1777.9,1777.8,5.38747]
[1745852922539,1.12441,1777.9,1777.7,5.9942]
[1745852922737,1.12441,1777.9,1777.8,1.12447]
[1745852922939,6.01862,1778.1,1777.7,5.99419]
[1745852923239,1.12447,1777.8,1777.7,10.25619]
[1745852923440,6.01862,1778.1,1777.7,10.25619]
[1745852923633,6.01862,1778.1,1777.7,10.25622]
[1745852923935,1.12444,1777.9,1777.8,1.12447]
[1745852924439,6.01862,1778.1,1777.7,9.1317]
[1745852924839,1.12445,1777.9,1777.7,9.1317]
[1745852925038,3.2078,1778.1,1777.7,10.2562]
[1745852925335,1.1246,1777.6,1777.5,0.8358]
[1745852925537,1.12473,1777.4,1777.3,7.05223]
[1745852925734,1.12472,1777.5,1777.4,1.12473]
[1745852925930,1.12472,1777.5,1777.4,1.6655]
[1745852926132,1.12472,1777.5,1777.4,2.79023]
[1745852926332,1.12472,1777.5,1777.4,1.6655]
[1745852927340,1.12472,1777.5,1776.7,8.87743]
[1745852927341,2.81206,1777.3,1776.7,8.87743]
[1745852927635,1.12504,1777.0,1776.8,40.8]